bitfinex-derivatives/quotes_ETHF0:USTF0_20250102
["timestamp","ask_amount","ask_price","bid_price","bid_amount"]
[1735846178443,41.08826,3472.4,3472.3,5.7921525]
[1735846179842,40.8,3472.4,3472.3,5.7921525]
[1735846180142,40.8,3472.4,3472.3,5.22515276]
[1735846180448,41.08826,3472.4,3472.3,5.22515276]
[1735846181743,41.08826,3472.4,3472.3,7.46829265]
[1735846183046,41.08826,3472.4,3472.3,5.79660653]
[1735846190946,41.08826,3472.4,3472.3,5.50834653]
[1735846193748,41.08826,3472.4,3472.3,5.05773355]
[1735846193949,41.08826,3472.4,3472.3,5.50836076]
[1735846195750,41.08826,3472.4,3472.3,4.94325935]
[1735846196847,41.08826,3472.4,3472.3,7.18637267]
[1735846198349,41.08826,3472.4,3472.3,12.25072168]
[1735846200848,43.80553086,3472.4,3472.3,10.53472168]
[1735846201152,48.80553086,3472.4,3472.3,9.12309168]
[1735846201456,48.80553086,3472.4,3472.3,7.70261168]
[1735846201756,48.80553086,3472.4,3472.3,6.25918168]
[1735846201952,48.80553086,3472.4,3472.3,4.89686168]
[1735846202146,48.80553086,3472.4,3472.3,4.26501168]
[1735846202347,48.80553086,3472.4,3471.7,4.49839033]
[1735846202348,52.04372883,3472.4,3471.7,4.49839033]
[1735846202656,5.76227086,3471.8,3471.7,4.49839033]
[1735846203060,51.56227086,3471.8,3471.7,4.49839033]
[1735846203358,2.55452086,3471.3,3471.2,8.93599034]
[1735846203667,6.91432086,3471.3,3471.2,8.93599034]
[1735846203855,0.28839,3470.8,3470.7,8.93599034]
[1735846204054,46.56236086,3470.8,3470.7,8.93599034]
[1735846204761,51.56236086,3470.8,3470.7,8.93599034]
[1735846205963,51.56236086,3470.8,3470.5,2.73264152]
[1735846205964,0.2884,3470.6,3470.5,2.73264152]
[1735846206260,0.2885,3469.5,3469.4,8.99434138]
[1735846206554,45.4483,3469.5,3469.4,8.99434138]
[1735846206755,47.71447086,3469.5,3469.4,8.99434138]
[1735846206955,52.71447086,3469.5,3469.4,8.40128373]
[1735846207467,47.71447086,3469.5,3469.4,8.40128373]
[1735846207759,0.72129,3469.3,3468.4,0.72738]
[1735846207955,3.2078,3468.8,3468.4,0.72738]
[1735846208157,0.28856,3468.7,3468.4,0.4388]
[1735846208463,3.2078,3468.8,3468.4,0.4388]
[1735846209063,0.28857,3468.7,3468.5,0.28858]
[1735846209257,3.49636,3468.8,3468.6,0.28857]
[1735846209458,3.49636,3468.8,3468.5,0.28857]
[1735846209662,0.28857,3468.7,3468.5,0.28857]
[1735846209861,0.28857,3468.7,3468.4,0.4388]
[1735846209862,0.28857,3468.7,3468.4,0.72738]
[1735846210163,0.28856,3468.7,3468.4,0.4388]
[1735846210959,3.2078,3468.8,3468.4,0.4388]
[1735846211265,0.28858,3468.6,3468.4,0.4388]
[1735846211668,0.28858,3468.5,3468.4,0.4388]
[1735846212166,2.26617086,3468.6,3468.0,0.4616]
[1735846212462,3.2078,3468.3,3467.5,0.8774]
[1735846212662,3.2078,3468.3,3467.6,0.28865]
[1735846212867,0.28863,3467.9,3467.6,0.28865]
[1735846213172,40.8,3468.2,3467.8,0.28863]
[1735846213173,0.28861,3468.1,3467.8,0.28863]
[1735846213363,40.8,3468.2,3467.7,2.26617086]
[1735846214061,0.28862,3468.1,3467.9,0.28863]
[1735846214457,0.28862,3468.1,3467.7,2.26617086]
[1735846214661,0.28862,3468.1,3467.8,0.28863]
[1735846215061,41.08861,3468.2,3467.9,0.28862]
[1735846215264,40.8,3468.2,3468.1,0.28861]
[1735846215463,0.72138,3468.9,3468.8,0.28855]
[1735846215464,3.2078,3468.9,3468.8,0.28855]
[1735846215666,5.46759766,3469.8,3468.8,5.47397086]
[1735846215864,40.8,3469.7,3468.9,1.3235]
[1735846216063,40.8,3469.7,3469.3,0.28851]
[1735846216266,0.28851,3469.3,3469.1,2.55469086]
[1735846216463,40.8,3469.7,3469.1,2.26617086]
[1735846216668,0.28851,3469.4,3469.2,0.28852]
[1735846217464,40.8,3469.7,3468.9,1.3235]
[1735846217770,40.8,3469.7,3469.1,0.28853]
[1735846217973,40.8,3469.7,3469.0,0.28853]
[1735846218171,0.28849,3469.6,3468.9,1.3235]
[1735846218373,0.28851,3469.4,3468.9,1.3235]
[1735846218574,0.2885,3469.5,3469.3,0.2885]
[1735846218874,0.28851,3469.4,3469.1,2.26617086]
[1735846219373,0.28852,3469.2,3469.1,0.28853]
[1735846219768,0.28852,3469.3,3469.1,0.28853]
[1735846219970,0.28852,3469.2,3469.1,0.28853]
[1735846220172,0.28849,3469.6,3469.2,0.28852]
[1735846220378,0.28851,3469.4,3469.2,0.28852]
[1735846220682,0.28851,3469.4,3469.3,0.28851]
[1735846221173,40.8,3469.7,3469.4,0.2885]
[1735846221174,0.2885,3469.5,3469.4,0.2885]
[1735846221376,0.28852,3469.3,3468.9,1.3235]
[1735846221576,0.28852,3469.2,3469.1,0.28853]
[1735846223268,6.19517086,3469.8,3468.9,1.3235]
[1735846223573,0.28854,3469.0,3468.9,1.3235]
[1735846224076,0.28854,3469.0,3468.9,0.8972]
[1735846224266,44.0078,3469.0,3468.3,0.4604]
[1735846224575,0.28859,3468.4,3468.3,0.4604]
[1735846225470,0.28859,3468.4,3468.3,0.74899]
[1735846226274,0.28859,3468.4,3468.3,0.4604]
[1735846226476,0.28859,3468.4,3468.3,0.749]
[1735846227266,0.28859,3468.4,3468.3,0.4604]
[1735846227576,0.28859,3468.4,3468.3,0.749]
[1735846228171,0.28859,3468.4,3468.3,0.4604]
[1735846229279,0.28861,3468.1,3468.0,0.4414]
[1735846229987,41.08861,3468.1,3468.0,0.4414]
[1735846231283,40.8,3468.1,3468.0,2.99619086]
[1735846233480,40.8,3468.1,3468.0,0.73002]
[1735846235477,0.28856,3468.8,3468.7,0.28856]
[1735846235877,41.08856,3468.8,3468.7,0.28856]
[1735846236981,40.8,3468.8,3468.7,0.28856]
[1735846237286,40.8,3468.8,3468.7,3.49636]
[1735846237495,40.8,3468.8,3468.7,4.41186]
[1735846238483,41.08855,3468.8,3468.7,4.41186]
[1735846238983,41.08855,3468.8,3468.7,0.9155]
[1735846239302,41.08855,3468.8,3468.7,0.4614]
[1735846240484,0.28858,3468.6,3468.5,0.28857]
[1735846240689,40.8,3468.8,3468.4,0.4405]
[1735846240890,40.8,3468.8,3468.6,0.28856]
[1735846240891,0.28857,3468.7,3468.6,0.28856]
[1735846242184,0.28858,3468.6,3468.5,0.28857]
[1735846242688,0.28858,3468.5,3468.4,0.72908]
[1735846243580,0.2886,3468.3,3468.2,0.72]
[1735846244179,41.0886,3468.3,3468.2,0.72]
[1735846245693,40.8,3468.3,3468.2,0.72]
[1735846247987,41.0886,3468.3,3468.2,0.72]
[1735846250993,40.8,3468.3,3468.2,0.72]
[1735846251192,41.08859,3468.3,3468.2,0.4314]
[1735846251398,0.28861,3468.1,3468.0,0.4414]
[1735846252293,0.28867,3467.4,3467.3,8.93357131]
[1735846252994,41.08867,3467.4,3467.3,8.93357131]
[1735846253686,44.29647,3467.4,3467.3,8.93357131]
[1735846253887,44.0078,3467.4,3467.2,0.4454]
[1735846254091,0.28868,3467.3,3467.2,0.4454]
[1735846255595,3.70305766,3467.7,3467.2,0.4454]
[1735846255596,0.28867,3467.5,3467.2,0.4454]
[1735846255800,2.25979766,3467.7,3467.6,0.28865]
[1735846256097,2.25979766,3467.7,3467.6,2.55482086]
[1735846256302,0.85579766,3467.7,3467.6,2.55482086]
[1735846256802,41.08861,3468.1,3468.0,0.28862]
[1735846257099,40.8,3468.1,3467.6,2.26617086]
[1735846257296,0.28866,3467.6,3467.5,0.28866]
[1735846257501,44.72935,3468.1,3467.3,0.4635]
[1735846257704,0.28865,3467.8,3467.7,0.28864]
[1735846257904,0.28863,3467.9,3467.8,0.28863]
[1735846258103,44.0078,3468.1,3467.3,0.4635]
[1735846258402,0.28865,3467.7,3467.6,0.28865]
[1735846258604,44.0078,3468.1,3467.3,0.4635]
[1735846258905,0.28866,3467.7,3467.6,0.28865]
[1735846259497,44.0078,3468.1,3467.5,5.47397086]
[1735846259799,44.0078,3468.1,3467.9,0.28862]
[1735846259800,0.28863,3468.0,3467.9,0.28862]
[1735846260216,41.08862,3468.1,3468.0,0.28862]
[1735846260608,0.28863,3468.0,3467.9,0.28862]
[1735846263016,40.8,3468.1,3467.5,3.2078]
[1735846263218,0.28864,3467.8,3467.7,0.28864]
[1735846264216,40.8,3468.1,3467.5,6.19562086]
[1735846264416,0.28863,3468.0,3467.9,0.28862]
[1735846265311,0.28864,3467.8,3467.5,5.47397086]
[1735846265519,0.28864,3467.8,3467.7,0.28864]
[1735846265714,40.8,3468.1,3467.5,5.47397086]
[1735846265918,0.28862,3468.0,3467.8,0.28863]
[1735846266110,0.28862,3468.0,3467.9,0.4449]
[1735846266717,41.08862,3468.1,3468.0,0.28862]
[1735846266920,40.8,3468.1,3468.0,0.4444]
[1735846267220,40.8,3468.1,3468.0,1.19882]
[1735846268022,3.3896965,3468.7,3468.0,0.9102]
[1735846268221,3.3896965,3468.7,3468.6,0.28857]
[1735846268917,3.6782565,3468.7,3468.6,0.28857]
[1735846269221,3.3896965,3468.7,3468.6,1.22107]
[1735846269422,41.08855,3468.9,3468.8,0.28855]
[1735846271220,40.8,3468.9,3468.8,0.28855]
[1735846271718,41.08854,3468.9,3468.8,0.28855]
[1735846271918,40.8,3468.9,3468.8,2.55472086]
[1735846272523,40.8,3468.9,3468.8,3.02012086]
[1735846273215,40.8,3468.9,3468.8,4.17312086]
[1735846274823,46.27397086,3468.9,3468.7,6.78101238]
[1735846275025,0.28855,3468.8,3468.7,6.78101238]
[1735846275416,41.08855,3468.8,3468.7,6.78101238]
[1735846276421,46.08855,3468.8,3468.7,6.08061238]
[1735846276726,46.08855,3468.8,3468.7,4.71054238]
[1735846276919,50.7666743,3468.8,3467.9,0.4572]
[1735846277114,0.28862,3468.0,3467.9,0.4572]
[1735846280319,3.39603839,3468.3,3468.2,0.2886]
[1735846280730,0.97803839,3468.3,3468.2,2.55477086]
[1735846280920,0.27603839,3468.3,3468.2,2.55477086]
[1735846281125,0.27603839,3468.4,3468.3,0.28859]
[1735846282020,0.28856,3468.8,3468.2,2.26617086]
[1735846282227,0.28856,3468.7,3468.6,0.28856]
[1735846283122,40.8,3469.1,3468.1,3.2078]
[1735846283123,2.26617086,3469.0,3468.1,3.2078]
[1735846283322,2.26617086,3469.0,3468.3,0.28859]
[1735846283323,0.28859,3468.4,3468.3,0.28859]
[1735846283521,0.72137,3468.9,3468.1,3.2078]
[1735846283522,0.28855,3468.8,3468.2,0.2886]
[1735846283715,0.72137,3468.9,3468.1,3.2078]
[1735846283926,0.2886,3468.2,3468.1,3.2078]
[1735846284632,41.0886,3468.2,3468.1,3.2078]
[1735846285124,40.8,3468.2,3468.1,3.49641]
[1735846288530,40.8,3468.2,3468.1,3.2078]
[1735846288732,41.0886,3468.2,3468.1,3.2078]
[1735846289827,40.8,3468.2,3468.1,3.2078]
[1735846290128,40.8,3468.2,3468.1,3.49641]
[1735846290932,41.0886,3468.2,3468.1,3.49641]
[1735846291124,40.8,3468.2,3468.1,3.49641]
[1735846291334,0.4402,3468.9,3468.1,3.2078]
[1735846291528,0.28855,3469.0,3468.9,0.28854]
[1735846291731,41.08855,3469.0,3468.9,0.28854]
[1735846291936,40.8,3469.0,3468.8,1.2957]
[1735846292133,0.28854,3468.9,3468.8,1.58425]
[1735846294134,40.8,3469.0,3468.8,1.2957]
[1735846294338,40.8,3469.0,3468.9,3.49634]
[1735846294528,2.71687086,3469.8,3469.4,0.28849]
[1735846294529,0.28849,3469.5,3469.4,0.28849]
[1735846294931,41.08849,3469.5,3469.4,0.28849]
[1735846295738,40.8,3469.5,3469.4,0.28849]
[1735846296039,40.8,3469.5,3469.4,0.74849]
[1735846296237,41.08849,3469.5,3469.4,0.74849]
[1735846296734,44.0078,3469.5,3468.9,3.2078]
[1735846296937,0.28854,3468.9,3468.8,8.93357131]
[1735846297534,0.28855,3468.8,3468.7,8.93357131]
[1735846298333,41.08855,3468.8,3468.7,8.93357131]
[1735846299138,0.2886,3468.2,3468.1,0.2886]
[1735846299443,3.2078,3468.5,3467.8,3.65097086]
[1735846299736,0.2886,3468.2,3468.1,0.2886]
[1735846300232,40.8,3468.8,3468.5,0.28858]
[1735846300233,0.28858,3468.6,3468.5,0.28858]
[1735846300432,40.8,3468.8,3468.5,0.28857]
[1735846300627,0.28856,3468.7,3468.6,0.443]
[1735846303335,0.28856,3468.7,3468.3,0.28859]
[1735846303336,40.8,3468.8,3468.0,3.2078]
[1735846303531,0.2886,3468.2,3468.1,0.72291]
[1735846304735,41.2405,3468.8,3468.1,0.4343]
[1735846304935,41.2405,3468.8,3468.4,3.2078]
[1735846304936,40.8,3468.8,3468.4,3.2078]
[1735846305131,0.28857,3468.6,3468.5,0.75427]
[1735846305536,41.08855,3468.8,3468.7,0.28856]
[1735846305738,0.28857,3468.7,3468.6,0.28856]
[1735846306440,40.8,3468.8,3468.7,0.28856]
[1735846307943,0.28853,3469.2,3469.1,0.28852]
[1735846308141,3.14907086,3469.6,3469.2,0.28852]
[1735846308446,0.28854,3469.0,3468.9,0.28854]
[1735846308753,0.28854,3469.0,3468.9,0.71994]
[1735846309235,0.28854,3468.9,3468.8,3.2078]
[1735846310948,0.28854,3468.9,3468.8,3.49635]
[1735846313044,0.28854,3468.9,3468.8,3.2078]
[1735846313747,0.28854,3468.9,3468.8,3.49635]
[1735846314940,0.28854,3468.9,3468.8,0.28855]
[1735846317449,0.28857,3468.8,3468.7,0.28855]
[1735846320248,0.28857,3468.8,3468.4,3.2078]
[1735846320249,3.2078,3468.9,3468.4,3.2078]
[1735846320446,0.2886,3468.2,3468.1,8.93357131]
[1735846320647,0.2886,3468.2,3468.1,9.22218131]
[1735846320856,0.2886,3468.2,3468.1,8.93357131]
[1735846321145,40.8,3468.2,3467.8,8.93357131]
[1735846321348,0.28863,3467.9,3467.8,8.93357131]
[1735846322849,0.28864,3467.7,3467.6,0.28865]
[1735846323046,0.72156,3468.0,3467.4,4.54]
[1735846323253,0.72156,3468.0,3467.5,0.28865]
[1735846323254,0.28866,3467.6,3467.5,0.28865]
[1735846323846,0.28864,3467.9,3467.8,0.28863]
[1735846324053,0.28865,3467.8,3467.7,0.28864]
[1735846324649,3.6313,3468.1,3467.2,4.51857516]
[1735846324857,2.55485086,3467.3,3467.2,4.51857516]
[1735846325457,0.4576,3467.5,3467.0,8.19217516]
[1735846325651,0.28869,3467.1,3467.0,8.19217516]
[1735846326249,41.08869,3467.1,3467.0,8.19217516]
[1735846326454,41.08869,3467.1,3467.0,8.62827516]
[1735846326455,40.8,3467.1,3467.0,8.62827516]
[1735846326754,41.08869,3467.1,3467.0,8.91697516]
[1735846327152,41.08869,3467.1,3467.0,4.3984]
[1735846327550,41.08869,3467.1,3467.0,4.1097]
[1735846327749,41.08869,3467.1,3467.0,4.3984]
[1735846328056,41.08869,3467.1,3467.0,4.1097]
[1735846328444,41.08869,3467.1,3467.0,4.3984]
[1735846330257,41.08869,3467.1,3467.0,4.1097]
[1735846330750,40.8,3467.1,3467.0,4.1097]
[1735846330958,3.6313,3468.1,3467.0,4.1097]
[1735846331161,0.28867,3467.5,3467.4,2.55483086]
[1735846331551,0.28867,3467.5,3467.4,0.28866]
[1735846331856,0.28865,3467.6,3467.5,0.28865]
[1735846332157,40.8,3467.9,3467.1,2.70297086]
[1735846332158,40.8,3467.9,3467.4,5.47397086]
[1735846332459,0.28865,3467.7,3467.6,0.28865]
[1735846332651,0.28866,3467.6,3467.5,0.28865]
[1735846333053,40.8,3467.9,3467.4,5.47397086]
[1735846333253,0.28866,3467.5,3467.4,5.76263086]
[1735846334547,40.8,3467.9,3467.2,0.28868]
[1735846334548,0.28868,3467.3,3467.2,0.28868]
[1735846334750,40.8,3467.9,3467.1,7.22154602]
[1735846334947,0.28867,3467.5,3467.4,0.28866]
[1735846337548,0.28866,3467.6,3467.5,0.28865]
[1735846337962,40.8,3467.9,3467.6,0.28864]
[1735846337963,0.28866,3467.7,3467.6,0.28864]
[1735846338253,0.28866,3467.6,3467.5,0.28865]
[1735846338447,40.8,3467.9,3467.4,5.47397086]
[1735846338650,0.28864,3467.8,3467.7,0.28864]
[1735846339055,0.28865,3467.7,3467.6,0.28864]
[1735846341658,40.8,3467.9,3467.8,0.28863]
[1735846341853,0.28857,3468.7,3468.6,0.28857]
[1735846342356,41.08857,3468.7,3468.6,0.28857]
[1735846342558,41.08857,3468.7,3468.6,1.14507]
[1735846344059,40.8,3468.7,3468.6,1.14507]
[1735846345558,40.8,3468.7,3468.6,2.35307]
[1735846346466,0.2885,3469.5,3469.4,0.2885]
[1735846346852,40.8,3469.5,3469.2,2.26617086]
[1735846347057,40.8,3469.5,3469.4,0.2885]
[1735846347464,40.8,3469.5,3469.4,0.7114]
[1735846347662,41.08849,3469.5,3469.4,0.7114]
[1735846348164,0.28852,3469.2,3469.1,3.2078]
[1735846348365,2.72037086,3469.4,3468.9,4.51857516]
[1735846348561,2.55470086,3469.0,3468.9,4.51857516]
[1735846348860,0.28855,3468.8,3468.7,3.64230665]
[1735846349066,3.49635,3468.8,3468.7,3.64230665]
[1735846349266,8.49635,3468.8,3468.7,3.64230665]
[1735846349456,49.29635,3468.8,3468.7,3.64230665]
[1735846349664,49.29635,3468.8,3468.3,11.14241714]
[1735846349665,0.28863,3467.9,3467.8,0.28863]
[1735846349858,3.2078,3468.4,3467.5,1.3633]
[1735846350073,0.28864,3467.9,3467.8,0.28863]
[1735846350264,41.08864,3467.9,3467.8,0.28863]
[1735846350571,41.08864,3467.9,3467.6,0.28864]
[1735846350572,0.28864,3467.7,3467.6,0.28864]
[1735846350763,40.8,3467.9,3467.5,1.3633]
[1735846350764,40.8,3467.9,3467.5,6.83727086]
[1735846350963,0.28865,3467.7,3467.6,0.28865]
[1735846351564,0.28865,3467.6,3467.5,4.85975]
[1735846354271,0.28865,3467.6,3467.5,4.5711]
[1735846355562,0.28865,3467.6,3467.5,4.85976]
[1735846355766,40.8,3467.9,3467.7,0.28864]
[1735846355767,0.28865,3467.8,3467.7,0.28864]
[1735846356067,0.28865,3467.6,3467.5,4.85976]
[1735846356476,0.28865,3467.6,3467.5,1.65196]
[1735846356865,0.28865,3467.6,3467.5,1.3633]
[1735846357669,0.28865,3467.6,3467.5,1.65196]
[1735846358374,40.8,3467.9,3467.2,2.26617086]
[1735846358673,2.26617086,3468.3,3467.3,0.8767]
[1735846358871,0.28866,3467.5,3467.4,0.28866]
[1735846359069,41.08866,3467.5,3467.4,0.28866]
[1735846359777,40.8,3467.5,3467.4,0.28866]
[1735846360174,41.08866,3467.5,3467.4,0.28866]
[1735846361373,41.08866,3467.5,3467.3,0.8767]
[1735846361374,0.28867,3467.4,3467.3,0.8767]
[1735846364478,0.28867,3467.4,3467.3,0.4285]
[1735846366480,40.8,3467.5,3467.1,3.2078]
[1735846366685,0.28869,3467.2,3467.1,3.2078]
[1735846368185,0.28869,3467.2,3467.1,3.49649]
[1735846369487,0.28869,3467.2,3467.1,3.2078]
[1735846369677,40.8,3467.5,3467.4,0.28867]
[1735846369877,0.28864,3467.9,3467.8,0.28863]
[1735846370284,41.08864,3467.9,3467.8,0.28863]
[1735846370685,40.8,3467.9,3467.8,0.28863]
[1735846370884,40.8,3467.9,3467.8,0.72603]
[1735846372986,0.28855,3469.0,3468.9,0.28854]
[1735846373886,41.08855,3469.0,3468.9,0.28854]
[1735846375091,40.8,3469.0,3468.9,0.28854]
[1735846375988,41.08854,3469.0,3468.9,0.28854]
[1735846376189,40.8,3469.0,3468.9,0.28854]
[1735846381493,0.28854,3468.9,3468.8,0.71705]
[1735846381790,0.28854,3469.0,3468.9,0.28854]
[1735846382190,0.28854,3468.9,3468.8,0.4285]
[1735846382392,41.08854,3468.9,3468.8,0.4285]
[1735846382590,41.08854,3468.9,3468.8,0.28855]
[1735846386298,40.8,3468.9,3468.8,0.28855]
[1735846387401,41.08854,3468.9,3468.8,0.28855]
[1735846388308,40.8,3468.9,3468.6,0.4304]
[1735846388600,41.08855,3468.9,3468.8,0.28855]
[1735846389704,0.28856,3468.8,3468.7,0.28856]
[1735846391404,41.08855,3468.9,3468.8,0.28855]
[1735846391906,0.28856,3468.7,3468.6,0.71896]
[1735846392111,40.8,3468.9,3468.4,2.26617086]
[1735846392112,0.28858,3468.5,3468.4,0.28858]
[1735846392406,0.28858,3468.5,3468.3,3.2078]
[1735846392407,0.28859,3468.4,3468.3,3.2078]
[1735846392798,0.72142,3468.7,3468.2,0.4572]
[1735846392799,0.28859,3468.3,3468.2,0.4572]
[1735846393307,41.08859,3468.3,3468.2,0.4572]
[1735846393707,46.99547086,3468.3,3467.8,3.2078]
[1735846394000,0.28865,3467.6,3467.5,0.4527]
[1735846394909,41.08865,3467.6,3467.5,0.74136]
[1735846395201,41.08865,3467.6,3467.5,0.4527]
[1735846395602,40.8,3467.6,3467.1,3.2078]
[1735846395805,0.28869,3467.2,3467.1,3.49649]
[1735846396009,40.8,3467.6,3467.1,3.2078]
[1735846396200,0.28868,3467.3,3467.2,0.28867]
[1735846396804,40.8,3467.6,3467.1,0.28869]
[1735846396805,0.28869,3467.2,3467.1,0.28869]
[1735846397202,0.28868,3467.3,3467.2,0.28868]
[1735846398211,40.8,3467.6,3466.9,2.26617086]
[1735846398413,0.2887,3467.1,3467.0,0.2887]
[1735846399000,0.2887,3467.1,3466.9,2.26617086]
[1735846399001,0.28869,3467.2,3467.1,0.28869]
[1735846399613,0.2887,3467.1,3467.0,0.2887]
[1735846399815,3.92946,3467.5,3466.7,3.6735]
[1735846400110,3.92946,3467.5,3466.8,0.73952]
[1735846400111,0.28871,3466.9,3466.8,0.73952]
[1735846400308,0.28872,3466.8,3466.7,0.4657]
[1735846400508,0.28872,3466.8,3466.7,0.75443]
[1735846400710,0.28871,3466.9,3466.8,0.28872]
[1735846400909,40.8,3466.9,3466.7,0.75442]
[1735846401213,0.28872,3466.8,3466.7,0.75442]
[1735846401704,0.28872,3466.8,3466.7,0.4657]
[1735846403117,0.30581284,3466.8,3466.7,0.4657]
[1735846403815,0.30581284,3466.8,3466.7,0.75443]
[1735846404611,0.01709284,3466.8,3466.7,3.02060086]
[1735846404809,0.01709284,3466.8,3466.7,6.22840086]
[1735846405504,0.01709284,3466.8,3466.7,3.96223]
[1735846406114,40.8,3466.9,3466.7,3.6735]
[1735846406313,40.8,3466.9,3466.8,2.55489086]
[1735846406718,6.19021479,3467.9,3466.8,2.26617086]
[1735846407024,0.28869,3467.2,3467.1,0.28869]
[1735846407228,41.08869,3467.2,3467.1,0.28869]
[1735846407518,0.2887,3467.1,3467.0,0.2887]
[1735846407713,0.2887,3467.1,3466.8,2.26617086]
[1735846407920,0.28872,3466.9,3466.8,0.28871]
[1735846408120,0.28872,3466.8,3466.7,3.6735]
[1735846408719,0.28872,3466.8,3466.7,0.4657]
[1735846409419,0.28874,3466.5,3466.4,0.4314]
[1735846409619,0.28875,3466.4,3466.3,4.1215]
[1735846409819,0.28875,3466.4,3466.3,3.6709]
[1735846410016,41.08875,3466.4,3466.3,3.6709]
[1735846410621,40.8,3466.4,3466.3,3.95966]
[1735846410821,41.08875,3466.4,3466.3,3.95966]
[1735846411022,40.8,3466.4,3466.3,6.22583086]
[1735846411327,0.28874,3466.7,3466.6,0.28873]
[1735846411628,41.08874,3466.7,3466.6,0.28873]
[1735846412317,0.28875,3466.5,3466.4,0.28874]
[1735846414726,0.28875,3466.4,3466.3,3.6709]
[1735846415126,0.28875,3466.4,3466.3,3.95966]
[1735846416120,0.28875,3466.4,3466.3,0.75186]
[1735846416637,0.28874,3466.6,3466.5,0.28874]
[1735846417930,0.28875,3466.4,3466.3,6.22582086]
[1735846421034,0.28875,3466.4,3466.3,3.95965]
[1735846421234,0.28875,3466.4,3466.3,6.22582086]
[1735846422230,0.28875,3466.4,3466.3,3.6709]
[1735846422433,0.28875,3466.4,3466.3,3.2078]
[1735846423126,41.08875,3466.4,3466.3,3.2078]
[1735846423934,45.8,3466.4,3465.4,0.9078]
[1735846424130,0.28883,3465.5,3465.4,0.9078]
[1735846424531,0.28883,3465.5,3465.4,1.19663]
[1735846424832,41.08883,3465.5,3465.4,0.9078]
[1735846425126,41.08883,3465.5,3465.4,1.19663]
[1735846426937,40.8,3465.5,3465.4,1.19663]
[1735846427240,41.08883,3465.5,3465.4,1.19663]
[1735846428639,41.08883,3465.5,3465.4,0.9078]
[1735846430937,41.08883,3465.5,3465.4,3.46280086]
[1735846430938,40.8,3465.5,3465.4,3.46280086]
[1735846431134,0.28881,3465.7,3465.6,0.28882]
[1735846431842,41.08881,3465.7,3465.6,0.28882]
[1735846434340,0.28883,3465.6,3465.5,0.28882]
[1735846435045,0.28883,3465.6,3465.4,3.17397086]
[1735846435245,0.28883,3465.6,3465.5,0.28883]
[1735846436343,0.28883,3465.5,3465.4,3.46280086]
[1735846438434,0.72195,3466.1,3465.4,6.38177086]
[1735846438742,2.26083479,3466.5,3466.0,2.26617086]
[1735846439041,2.26083479,3466.5,3466.3,2.55492086]
[1735846439042,41.08876,3466.4,3466.3,2.55492086]
[1735846439739,41.08876,3466.4,3466.3,1.55492086]
[1735846440340,0.28877,3466.3,3466.2,0.28877]
[1735846442845,41.08877,3466.3,3466.2,0.28877]
[1735846444337,41.08877,3466.3,3466.1,1.2956]
[1735846444542,0.28877,3466.2,3466.1,1.58437]
[1735846445449,40.8,3466.3,3466.1,1.2956]
[1735846445747,41.08876,3466.3,3466.2,0.28877]
[1735846446951,40.8,3466.3,3466.2,0.28877]
[1735846447350,41.08876,3466.3,3466.2,0.28877]
[1735846447944,41.08876,3466.3,3466.1,1.2956]
[1735846447945,0.28877,3466.2,3466.1,1.2956]
[1735846448144,0.28878,3466.0,3465.9,6.76626013]
[1735846448742,41.08878,3466.0,3465.9,6.76626013]
[1735846449356,0.28881,3465.7,3465.6,0.4494]
[1735846449653,3.49661,3465.7,3465.6,0.4494]
[1735846450352,0.28881,3465.7,3465.6,0.4494]
[1735846450953,3.49661,3465.7,3465.6,0.4494]
[1735846451454,0.28881,3465.7,3465.6,0.73822]
[1735846451752,0.28881,3465.7,3465.6,0.4494]
[1735846451958,41.08879,3466.0,3465.9,0.28879]
[1735846452341,40.8,3466.0,3465.7,2.26617086]
[1735846452548,0.2888,3465.9,3465.8,0.72099]
[1735846453150,40.8,3466.0,3465.9,0.28879]
[1735846453348,40.8,3466.0,3465.9,0.73109]
[1735846455159,41.08878,3466.0,3465.9,0.73109]
[1735846455565,41.08878,3466.0,3465.9,5.08468319]
[1735846456770,41.08878,3466.0,3465.9,4.79589319]
[1735846457064,0.28879,3465.9,3465.8,0.721]
[1735846458270,0.28879,3465.9,3465.8,5.07985485]
[1735846458674,0.28879,3465.9,3465.8,4.79105485]
[1735846459071,0.28879,3465.9,3465.8,5.07985485]
[1735846459565,0.28879,3465.9,3465.8,0.721]
[1735846460171,40.8,3466.0,3465.6,7.22573084]
[1735846460376,0.28881,3465.7,3465.6,7.22573084]
[1735846461876,0.28881,3465.7,3465.6,0.4494]
[1735846463577,0.28881,3465.7,3465.6,0.73822]
[1735846465672,0.28881,3465.9,3465.8,0.28879]
[1735846466074,41.08879,3466.0,3465.9,0.28879]
[1735846466274,40.8,3466.0,3465.9,0.28879]
[1735846467579,41.08878,3466.0,3465.9,0.28879]
[1735846467779,40.8,3466.0,3465.9,0.72939]
[1735846467979,40.8,3466.0,3465.9,1.19619]
[1735846468773,40.8,3466.0,3465.9,12.33117101]
[1735846470182,40.8,3466.0,3465.9,5.55484017]
[1735846474386,40.8,3466.0,3465.9,8.76264017]
[1735846475280,3.2078,3466.7,3465.9,15.25044398]
[1735846475481,0.28874,3466.6,3466.5,0.28873]
[1735846475877,41.08874,3466.6,3466.5,0.28873]
[1735846480785,0.28875,3466.5,3466.4,0.28875]
[1735846481286,0.28875,3466.4,3466.3,4.51680704]
[1735846481488,0.30735,3466.4,3466.3,2.87136704]